fUSD/lending_fUSD_20250806
["ID","MTS","AMOUNT","RATE_DAILY","PERIOD"]
[377588314,1754448725526,-400.0,0.00036712,14]
[377588315,1754448725535,-1550.81,0.00036712,14]
[377588316,1754448725544,-400.0,0.00036712,14]
[377588317,1754448725554,-400.0,0.00036712,14]
[377588318,1754448725563,-400.0,0.00036712,14]
[377588319,1754448725573,-1830.1,0.00036712,14]
[377588320,1754448725582,-400.0,0.00036712,14]
[377588321,1754448725591,-400.0,0.00036712,14]
[377588322,1754448725600,-802.15,0.00036712,14]
[377588323,1754448725609,-1088.04,0.00036712,14]
[377588324,1754448725618,-3675.96,0.00036712,14]
[377588325,1754448725627,-400.0,0.00036712,14]
[377588326,1754448725636,-417.37,0.00036712,14]
[377588327,1754448725645,-1532.37,0.00036712,14]
[377588328,1754448725654,-498.81,0.00036712,14]
[377588329,1754448725663,-675.67,0.00036712,14]
[377588330,1754448725672,-400.0,0.00036712,14]
[377588331,1754448725681,-1930.27,0.00036712,14]
[377588332,1754448725690,-477.88,0.00036712,14]
[377588333,1754448725699,-400.0,0.00036712,14]
[377588334,1754448725708,-400.0,0.00036712,14]
[377588335,1754448725717,-400.0,0.00036712,14]
[377588336,1754448725726,-1895.26,0.00036712,14]
[377588337,1754448725736,-400.0,0.00036712,14]
[377588338,1754448725745,-2398.75,0.00036712,14]
[377588339,1754448725753,-693.8,0.00036712,14]
[377588340,1754448725762,-1056.68,0.00036712,14]
[377588341,1754448725772,-400.0,0.00036712,14]
[377588342,1754448725781,-400.0,0.00036712,14]
[377588343,1754448725790,-694.7,0.00036712,14]
[377588344,1754448725800,-400.0,0.00036712,14]
[377588345,1754448725809,-1000.88,0.00036712,14]
[377588346,1754448725818,-400.0,0.00036712,14]
[377588347,1754448725827,-400.0,0.00036712,14]
[377588348,1754448725836,-1000.0,0.00036712,14]
[377588349,1754448725845,-400.0,0.00036712,14]
[377588350,1754448725854,-400.0,0.00036712,14]
[377588351,1754448725867,-519.65372147,0.00036712,14]
[377588352,1754448725876,-1087.98,0.00036712,14]
[377588353,1754448725885,-1317.27,0.00036712,14]
[377588354,1754448725895,-432.07,0.00036712,14]
[377588355,1754448725904,-660.48,0.00036712,14]
[377588356,1754448725914,-1841.73,0.00036712,14]
[377588357,1754448725923,-400.0,0.00036712,14]
[377588358,1754448725933,-400.0,0.00036712,14]
[377588359,1754448725943,-1706.66,0.00036712,14]
[377588360,1754448725952,-400.0,0.00036712,14]
[377588361,1754448725961,-2115.6,0.00036712,14]
[377588362,1754448725970,-2048.1,0.00036712,14]
[377588363,1754448725979,-195.838328,0.00036712,7]
[377588364,1754448725989,-195.838328,0.00036712,7]
[377588365,1754448725998,-151.0,0.00036712,7]
[377588366,1754448726007,-400.0,0.00036712,14]
[377588367,1754448726017,-890.38,0.00036712,14]
[377588368,1754448726027,-400.0,0.00036712,14]
[377588369,1754448726037,-763.76,0.00036712,14]
[377588370,1754448726047,-400.0,0.00036712,14]
[377588371,1754448726056,-400.0,0.00036712,14]
[377588372,1754448726067,-195.838328,0.00036712,7]
[377588373,1754448726077,-195.838328,0.00036712,7]
[377588374,1754448726088,-400.0,0.00036712,14]
[377588375,1754448726100,-400.0,0.00036712,14]
[377588376,1754448726111,-554.46,0.00036712,14]
[377588377,1754448726133,-1978.5,0.00036712,14]
[377588378,1754448726143,-3061.86,0.00036712,14]
[377588379,1754448726153,-572.41,0.00036712,14]
[377588380,1754448726164,-1869.25,0.00036712,14]
[377588381,1754448726175,-1241.1,0.00036712,14]
[377588382,1754448726191,-1742.73,0.00036712,14]
[377588383,1754448726202,-400.0,0.00036712,14]
[377588384,1754448726211,-400.0,0.00036712,14]
[377588385,1754448726220,-589.98,0.00036712,14]
[377588386,1754448726229,-1056.28,0.00036712,14]
[377588387,1754448726239,-1789.45,0.00036712,14]
[377588388,1754448726248,-400.0,0.00036712,14]
[377588389,1754448726258,-3264.35,0.00036712,14]
[377588390,1754448726268,-400.0,0.00036712,14]
[377588391,1754448726277,-509.04331685,0.00036712,14]
[377588392,1754448726288,-1465.39,0.00036712,14]
[377588393,1754448726299,-400.0,0.00036712,14]
[377588394,1754448726309,-719.58,0.00036712,14]
[377588395,1754448726318,-1335.74,0.00036712,14]
[377588396,1754448726328,-400.0,0.00036712,14]
[377588397,1754448726337,-1301.62,0.00036712,14]
[377588398,1754448726346,-400.0,0.00036712,14]
[377588399,1754448726358,-493.26,0.00036712,14]
[377588400,1754448726371,-1906.92,0.00036712,14]
[377588401,1754448726380,-400.0,0.00036712,14]
[377588402,1754448726390,-2206.71,0.00036712,14]
[377588403,1754448726400,-400.73040507,0.00036712,14]
[377588404,1754448726410,-400.0,0.00036712,14]
[377588405,1754448726419,-451.74,0.00036712,14]
[377588406,1754448726430,-400.0,0.00036712,14]
[377588407,1754448726439,-400.0,0.00036712,14]
[377588408,1754448726449,-400.0,0.00036712,14]
[377588409,1754448726459,-400.0,0.00036712,14]
[377588410,1754448726469,-400.0,0.00036712,14]
[377588411,1754448726479,-986.68,0.00036712,14]
[377588412,1754448726489,-1276.43,0.00036712,14]
[377588413,1754448726498,-922.85,0.00036712,14]
[377588414,1754448726507,-947.42,0.00036712,14]
[377588415,1754448726516,-400.0,0.00036712,14]
[377588416,1754448726526,-400.0,0.00036712,14]
[377588417,1754448726536,-2195.08,0.00036712,14]
[377588418,1754448726545,-1464.57,0.00036712,14]
[377588419,1754448726554,-802.3,0.00036712,14]
[377588420,1754448726563,-2197.84,0.00036712,14]
[377588421,1754448726574,-804.15,0.00036712,14]
[377588422,1754448726585,-400.0,0.00036712,14]
[377588423,1754448726596,-400.0,0.00036712,14]
[377588424,1754448726606,-820.58,0.00036712,14]
[377588425,1754448726616,-400.0,0.00036712,14]
[377588426,1754448726625,-684.16,0.00036712,14]
[377588427,1754448726637,-611.45,0.00036712,14]
[377588428,1754448726647,-744.31,0.00036712,14]
[377588429,1754448726657,-1536.69,0.00036712,14]
[377588430,1754448726667,-2158.92,0.00036712,14]
[377588431,1754448726679,-400.0,0.00036712,14]
[377588432,1754448726689,-400.0,0.00036712,14]
[377588433,1754448726700,-461.52,0.00036712,14]
[377588434,1754448726709,-400.0,0.00036712,14]
[377588435,1754448726719,-400.0,0.00036712,14]
[377588436,1754448726729,-400.0,0.00036712,14]
[377588437,1754448726739,-545.58,0.00036712,14]
[377588438,1754448726748,-850.08,0.00036712,14]
[377588439,1754448726757,-1521.24,0.00036712,14]
[377588440,1754448726767,-400.0,0.00036712,14]
[377588441,1754448726777,-300.0,0.00036712,14]
[377588442,1754448726786,-521.67,0.00036712,14]
[377588443,1754448726795,-400.0,0.00036712,14]
[377588444,1754448726805,-1086.81,0.00036712,14]
[377588445,1754448726815,-2094.08,0.00036712,14]
[377588446,1754448726824,-1148.89,0.00036712,14]
[377588447,1754448726833,-400.0,0.00036712,14]
[377588448,1754448726843,-400.0,0.00036712,14]
[377588449,1754448726853,-400.0,0.00036712,14]
[377588450,1754448726863,-647.61,0.00036712,14]
[377588451,1754448726876,-1804.32,0.00036712,14]
[377588452,1754448726885,-688.12,0.00036712,14]
[377588453,1754448726894,-575.0,0.00036712,14]
[377588454,1754448726904,-460.78,0.00036712,14]
[377588455,1754448726914,-1509.88,0.00036712,14]
[377588456,1754448726923,-400.0,0.00036712,14]
[377588457,1754448726933,-400.0,0.00036712,14]
[377588458,1754448726943,-400.0,0.00036712,14]
[377588459,1754448726952,-400.0,0.00036712,14]
[377588460,1754448726963,-1622.09,0.00036712,14]
[377588461,1754448726973,-1836.14,0.00036712,14]
[377588462,1754448726982,-400.0,0.00036712,14]
[377588463,1754448726992,-400.0,0.00036712,14]
[377588464,1754448727002,-400.0,0.00036712,14]
[377588465,1754448727012,-399.44533316,0.00036712,14]
[377588466,1754448727021,-774.95,0.00036712,14]
[377588467,1754448727031,-449.13,0.00036712,14]
[377588468,1754448727040,-400.0,0.00036712,14]
[377588469,1754448727050,-2961.28,0.00036712,14]
[377588470,1754448727059,-1032.0,0.00036712,14]
[377588471,1754448727069,-878.8,0.00036712,14]
[377588472,1754448727078,-2880.34,0.00036712,14]
[377588473,1754448727089,-1829.37,0.00036712,14]
[377588474,1754448727099,-1462.8,0.00036712,14]
[377588475,1754448727110,-3418.23,0.00036712,14]
[377588476,1754448727120,-1158.06,0.00036712,14]
[377588477,1754448727133,-400.0,0.00036712,14]
[377588478,1754448727142,-400.0,0.00036712,14]
[377588479,1754448727151,-1563.04,0.00036712,14]
[377588480,1754448727161,-400.0,0.00036712,14]
[377588481,1754448727171,-650.36,0.00036712,14]
[377588482,1754448727180,-400.0,0.00036712,14]
[377588483,1754448727191,-1923.25,0.00036712,14]
[377588484,1754448727203,-400.0,0.00036712,14]
[377588485,1754448727214,-2020.14,0.00036712,14]
[377588486,1754448727475,-2285.89,0.00036712,14]
[377588487,1754448727486,-3412.85,0.00036712,14]
[377588488,1754448727496,-444.68,0.00036712,14]
[377588489,1754448727507,-400.0,0.00036712,14]
[377588490,1754448727517,-400.0,0.00036712,14]
[377588491,1754448727528,-400.0,0.00036712,14]
[377588492,1754448727538,-400.0,0.00036712,14]
[377588493,1754448727547,-1704.34,0.00036712,14]
[377588494,1754448727556,-400.0,0.00036712,14]
[377588495,1754448727566,-981.32,0.00036712,14]
[377588496,1754448727575,-400.0,0.00036712,14]
[377588497,1754448727584,-422.51,0.00036712,14]
[377588498,1754448727593,-1217.8,0.00036712,14]
[377588499,1754448727603,-391.79914406,0.00036712,14]
[377588500,1754448727612,-400.0,0.00036712,14]
[377588501,1754448727622,-426.16,0.00036712,14]
[377588502,1754448727631,-719.56,0.00036712,14]
[377588503,1754448727640,-400.0,0.00036712,14]
[377588504,1754448727650,-2284.92,0.00036712,14]
[377588505,1754448727660,-2049.87,0.00036712,14]
[377588506,1754448727669,-400.0,0.00036712,14]
[377588507,1754448727678,-400.0,0.00036712,14]
[377588508,1754448727687,-400.0,0.00036712,14]
[377588509,1754448727696,-400.0,0.00036712,14]
[377588510,1754448727706,-400.0,0.00036712,14]
[377588511,1754448727715,-1324.35,0.00036712,14]
[377588512,1754448727724,-400.0,0.00036712,14]
[377588513,1754448727733,-400.0,0.00036712,14]
[377588514,1754448727743,-536.81,0.00036712,14]
[377588515,1754448727752,-400.0,0.00036712,14]
[377588516,1754448727761,-1978.73,0.00036712,14]
[377588517,1754448727771,-2066.75,0.00036712,14]
[377588518,1754448727780,-400.0,0.00036712,14]
[377588519,1754448727790,-400.0,0.00036712,14]
[377588520,1754448727800,-400.0,0.00036712,14]
[377588521,1754448727810,-2370.33,0.00036712,14]
[377588522,1754448727819,-400.0,0.00036712,14]
[377588523,1754448727829,-400.0,0.00036712,14]
[377588524,1754448727839,-618.59,0.00036712,14]
[377588525,1754448727848,-1380.46,0.00036712,14]
[377588526,1754448727858,-400.0,0.00036712,14]
[377588527,1754448727869,-1918.49,0.00036712,14]
[377588528,1754448727879,-681.38,0.00036712,14]
[377588529,1754448727888,-400.0,0.00036712,14]
[377588530,1754448727898,-400.0,0.00036712,14]
[377588531,1754448727909,-400.0,0.00036712,14]
[377588532,1754448727919,-306.16,0.00036712,14]
[377588533,1754448727928,-898.87,0.00036712,14]
[377588534,1754448727938,-1159.52,0.00036712,14]
[377588535,1754448727948,-589.89,0.00036712,14]
[377588536,1754448727957,-2526.57,0.00036712,14]
[377588537,1754448727967,-400.0,0.00036712,14]
[377588538,1754448727976,-400.0,0.00036712,14]
[377588539,1754448727985,-481.3,0.00036712,14]
[377588540,1754448727995,-400.0,0.00036712,14]
[377588541,1754448728006,-400.0,0.00036712,14]
[377588542,1754448728016,-1943.34,0.00036712,14]
[377588543,1754448728026,-771.1,0.00036712,14]
[377588544,1754448728035,-738.49,0.00036712,14]
[377588545,1754448728044,-1101.66,0.00036712,14]
[377588546,1754448728056,-2119.77,0.00036712,14]
[377588547,1754448728066,-400.0,0.00036712,14]
[377588548,1754448728075,-400.0,0.00036712,14]
[377588549,1754448728085,-400.0,0.00036712,14]
[377588550,1754448728094,-151.0,0.00036712,7]
[377588551,1754448728104,-400.0,0.00036712,14]
[377588552,1754448728114,-163.220844,0.00036712,7]
[377588553,1754448728124,-151.0,0.00036712,7]
[377588554,1754448728134,-2486.07,0.00036712,14]
[377588555,1754448728144,-400.0,0.00036712,14]
[377588556,1754448728153,-400.0,0.00036712,14]
[377588557,1754448728163,-400.0,0.00036712,14]
[377588558,1754448728172,-1301.09,0.00036712,14]
[377588559,1754448728183,-400.0,0.00036712,14]
[377588560,1754448728192,-825.89,0.00036712,14]
[377588561,1754448728202,-400.0,0.00036712,14]
[377588562,1754448728211,-400.0,0.00036712,14]
[377588563,1754448728221,-400.0,0.00036712,14]
[377588564,1754448728230,-400.0,0.00036712,14]
[377588565,1754448728240,-400.0,0.00036712,14]
[377588566,1754448728249,-681.33,0.00036712,14]
[377588567,1754448728258,-424.16,0.00036712,14]
[377588568,1754448728267,-400.0,0.00036712,14]
[377588569,1754448728276,-1940.75,0.00036712,14]
[377588570,1754448728285,-400.0,0.00036712,14]
[377588571,1754448728295,-2332.46,0.00036712,14]
[377588572,1754448728304,-400.0,0.00036712,14]
[377588573,1754448728313,-400.0,0.00036712,14]
[377588574,1754448728322,-2008.42,0.00036712,14]
[377588575,1754448728332,-1594.04,0.00036712,14]
[377588576,1754448728341,-400.0,0.00036712,14]
[377588577,1754448728350,-400.0,0.00036712,14]
[377588578,1754448728359,-1556.67,0.00036712,14]
[377588579,1754448728369,-400.0,0.00036712,14]
[377588580,1754448728378,-400.0,0.00036712,14]
[377588581,1754448728387,-803.41,0.00036712,14]
[377588582,1754448728396,-1049.45,0.00036712,14]
[377588583,1754448728406,-400.0,0.00036712,14]
[377588584,1754448728415,-2287.11,0.00036712,14]
[377588585,1754448728424,-2094.9,0.00036712,14]
[377588586,1754448728433,-3089.8,0.00036712,14]
[377588587,1754448728442,-400.0,0.00036712,14]
[377588588,1754448728451,-2284.3,0.00036712,14]
[377588589,1754448728461,-1760.6,0.00036712,14]
[377588590,1754448728470,-904.68,0.00036712,14]
[377588591,1754448728479,-590.2,0.00036712,14]
[377588592,1754448728488,-524.39,0.00036712,14]
[377588593,1754448728497,-400.0,0.00036712,14]
[377588594,1754448728506,-538.64,0.00036712,14]
[377588595,1754448728515,-400.0,0.00036712,14]
[377588596,1754448728525,-430.53561795,0.00036712,14]
[377588597,1754448728534,-473.05,0.00036712,14]
[377588598,1754448728544,-477.4,0.00036712,14]
[377588599,1754448728554,-1562.45,0.00036712,14]
[377588600,1754448728564,-992.23,0.00036712,14]
[377588601,1754448728573,-400.0,0.00036712,14]
[377588602,1754448728582,-681.47,0.00036712,14]
[377588603,1754448728591,-400.0,0.00036712,14]
[377588604,1754448728600,-1343.91,0.00036712,14]
[377588605,1754448728609,-1123.2,0.00036712,14]
[377588606,1754448728618,-400.0,0.00036712,14]
[377588607,1754448728627,-402.35,0.00036712,14]
[377588608,1754448728636,-400.0,0.00036712,14]
[377588609,1754448728645,-400.0,0.00036712,14]
[377588610,1754448728655,-400.0,0.00036712,14]
[377588611,1754448728664,-659.8,0.00036712,14]
[377588612,1754448728673,-400.0,0.00036712,14]
[377588613,1754448728682,-905.29,0.00036712,14]
[377588614,1754448728691,-400.0,0.00036712,14]
[377588615,1754448728700,-400.0,0.00036712,14]
[377588616,1754448728709,-833.81,0.00036712,14]
[377588617,1754448728719,-400.0,0.00036712,14]
[377588618,1754448728728,-400.0,0.00036712,14]
[377588619,1754448728737,-400.0,0.00036712,14]
[377588620,1754448728746,-423.93,0.00036712,14]
[377588621,1754448728755,-400.0,0.00036712,14]
[377588622,1754448728765,-1620.39,0.00036712,14]
[377588623,1754448728774,-403.40501473,0.00036712,14]
[377588624,1754448728783,-1647.26,0.00036712,14]
[377588625,1754448728792,-400.0,0.00036712,14]
[377588626,1754448728801,-2673.63,0.00036712,14]
[377588627,1754448728811,-400.0,0.00036712,14]
[377588628,1754448728820,-400.0,0.00036712,14]
[377588629,1754448728829,-3032.43,0.00036712,14]
[377588630,1754448728839,-2718.79,0.00036712,14]
[377588631,1754448728849,-591.66,0.00036712,14]
[377588632,1754448728859,-400.0,0.00036712,14]
[377588633,1754448728871,-652.53,0.00036712,14]
[377588634,1754448728881,-537.68,0.00036712,14]
[377588635,1754448728890,-400.0,0.00036712,14]
[377588636,1754448728900,-385.94,0.00036712,14]
[377588637,1754448728910,-1352.85,0.00036712,14]
[377588638,1754448728919,-400.0,0.00036712,14]
[377588639,1754448728929,-1194.25,0.00036712,14]
[377588640,1754448728939,-1325.26,0.00036712,14]
[377588641,1754448728949,-687.17,0.00036712,14]
[377588642,1754448728959,-3219.58,0.00036712,14]
[377588643,1754448728968,-400.0,0.00036712,14]
[377588644,1754448728979,-400.0,0.00036712,14]
[377588645,1754448728988,-400.0,0.00036712,14]
[377588646,1754448728998,-2118.84,0.00036712,14]
[377588647,1754448729007,-2996.94,0.00036712,14]
[377588648,1754448729017,-1193.92,0.00036712,14]
[377588649,1754448729027,-400.0,0.00036712,14]
[377588650,1754448729037,-1273.79,0.00036712,14]
[377588651,1754448729046,-400.0,0.00036712,14]
[377588652,1754448729056,-400.0,0.00036712,14]
[377588653,1754448729065,-400.0,0.00036712,14]
[377588654,1754448729076,-400.0,0.00036712,14]
[377588655,1754448729086,-400.0,0.00036712,14]
[377588656,1754448729095,-825.46,0.00036712,14]
[377588657,1754448729105,-400.0,0.00036712,14]
[377588658,1754448729115,-400.0,0.00036712,14]
[377588659,1754448729127,-509.96,0.00036712,14]
[377588660,1754448729136,-2113.04,0.00036712,14]
[377588661,1754448729145,-400.0,0.00036712,14]
[377588662,1754448729155,-2100.37,0.00036712,14]
[377588663,1754448729165,-400.0,0.00036712,14]
[377588664,1754448729175,-189.55172067,0.00036712,14]
[377588665,1754448729185,-1931.44,0.00036712,14]
[377588666,1754448729196,-445.22,0.00036712,14]
[377588667,1754448729206,-400.0,0.00036712,14]
[377588668,1754448729218,-2053.25,0.00036712,14]
[377588669,1754448729229,-400.0,0.00036712,14]
[377588670,1754448729239,-400.0,0.00036712,14]
[377588671,1754448729251,-590.55,0.00036712,14]
[377588672,1754448729260,-400.0,0.00036712,14]
[377588673,1754448729270,-1620.16,0.00036712,14]
[377588674,1754448729280,-400.0,0.00036712,14]
[377588675,1754448729292,-457.71,0.00036712,14]
[377588676,1754448729304,-2044.76,0.00036712,14]
[377588677,1754448729313,-400.0,0.00036712,14]
[377588678,1754448729322,-2493.6,0.00036712,14]
[377588679,1754448729331,-500.0,0.00036712,10]
[377588680,1754448729341,-400.0,0.00036712,14]
[377588681,1754448729350,-1325.52,0.00036712,14]
[377588682,1754448729359,-400.0,0.00036712,14]
[377588683,1754448729369,-3399.61,0.00036712,14]
[377588684,1754448729378,-400.0,0.00036712,14]
[377588685,1754448729388,-400.0,0.00036712,14]
[377588686,1754448729397,-486.69,0.00036712,14]
[377588687,1754448729406,-432.33474537,0.00036712,14]
[377588688,1754448729416,-1026.17,0.00036712,14]
[377588689,1754448729425,-400.0,0.00036712,14]
[377588690,1754448729436,-723.29,0.00036712,14]
[377588691,1754448729445,-651.88,0.00036712,14]
[377588692,1754448729454,-400.0,0.00036712,14]
[377588693,1754448729464,-400.0,0.00036712,14]
[377588694,1754448729474,-903.69,0.00036712,14]
[377588695,1754448729484,-1532.92,0.00036712,14]
[377588696,1754448729495,-672.26,0.00036712,14]
[377588697,1754448729506,-400.0,0.00036712,14]
[377588698,1754448729517,-400.0,0.00036712,14]
[377588699,1754448729527,-400.0,0.00036712,14]
[377588700,1754448729537,-1382.08,0.00036712,14]
[377588701,1754448729550,-400.0,0.00036712,14]
[377588702,1754448729561,-2614.37,0.00036712,14]
[377588703,1754448729570,-400.0,0.00036712,14]
[377588704,1754448729580,-1985.89,0.00036712,14]
[377588705,1754448729589,-400.0,0.00036712,14]
[377588706,1754448729598,-677.89,0.00036712,14]
[377588707,1754448729607,-400.0,0.00036712,14]
[377588708,1754448729616,-1383.95,0.00036712,14]
[377588709,1754448729626,-400.0,0.00036712,14]
[377588710,1754448729637,-400.0,0.00036712,14]
[377588711,1754448729647,-832.0,0.00036712,14]
[377588712,1754448729657,-400.0,0.00036712,14]
[377588713,1754448729666,-400.0,0.00036712,14]
[377588714,1754448729675,-400.0,0.00036712,14]
[377588715,1754448729686,-579.93,0.00036712,14]
[377588716,1754448729695,-1028.28,0.00036712,14]
[377588717,1754448729704,-2180.85,0.00036712,14]
[377588718,1754448729714,-400.0,0.00036712,14]
[377588719,1754448729726,-717.13,0.00036712,14]
[377588720,1754448729736,-400.0,0.00036712,14]
[377588721,1754448729746,-400.0,0.00036712,14]
[377588722,1754448729756,-2778.5,0.00036712,14]
[377588723,1754448729767,-400.0,0.00036712,14]
[377588724,1754448729778,-400.0,0.00036712,14]
[377588725,1754448729788,-400.0,0.00036712,14]
[377588726,1754448729799,-2015.29,0.00036712,14]
[377588727,1754448729808,-3708.79,0.00036712,14]
[377588728,1754448729818,-752.93,0.00036712,14]
[377588729,1754448729828,-400.0,0.00036712,14]
[377588730,1754448729838,-400.0,0.00036712,14]
[377588731,1754448729848,-400.0,0.00036712,14]
[377588732,1754448729857,-164.597001,0.00036712,7]
[377588733,1754448729871,-735.15,0.00036712,14]
[377588734,1754448729883,-2553.57,0.00036712,14]
[377588735,1754448729893,-400.0,0.00036712,14]
[377588736,1754448729903,-1607.76,0.00036712,14]
[377588737,1754448730027,-400.0,0.00036712,14]
[377588738,1754448730037,-400.0,0.00036712,14]
[377588739,1754448730048,-464.2245,0.00036712,2]
[377588740,1754448730058,-1838.27,0.00036712,14]
[377588741,1754448730068,-757.96,0.00036712,14]
[377588742,1754448730077,-2459.31,0.00036712,14]
[377588743,1754448730086,-164.597002,0.00036712,7]
[377588744,1754448730096,-400.0,0.00036712,14]
[377588745,1754448730105,-400.00002484,0.00036712,2]
[377588746,1754448730115,-2248.73,0.00036712,14]
[377588747,1754448730124,-865.96,0.00036712,14]
[377588748,1754448730133,-400.0,0.00036712,14]
[377588749,1754448730142,-1094.22,0.00036712,14]
[377588750,1754448730151,-842.75,0.00036712,14]
[377588751,1754448730160,-1141.46,0.00036712,14]
[377588752,1754448730169,-2023.14,0.00036712,14]
[377588753,1754448730179,-400.0,0.00036712,14]
[377588754,1754448730187,-1074.3,0.00036712,14]
[377588755,1754448730196,-1520.4,0.00036712,14]
[377588756,1754448730205,-414.57,0.00036712,14]
[377588757,1754448730214,-1903.84,0.00036712,14]
[377588758,1754448730223,-400.0,0.00036712,14]
[377588759,1754448730232,-400.0,0.00036712,14]
[377588760,1754448730243,-715.12,0.00036712,14]
[377588761,1754448730253,-400.0,0.00036712,14]
[377588762,1754448730262,-1769.99,0.00036712,14]
[377588763,1754448730271,-3013.96,0.00036712,14]
[377588764,1754448730280,-450.72,0.00036712,14]
[377588765,1754448730289,-1189.15,0.00036712,14]
[377588766,1754448730298,-400.0,0.00036712,14]
[377588767,1754448730307,-1853.29,0.00036712,14]
[377588768,1754448730316,-400.0,0.00036712,14]
[377588769,1754448730325,-2171.13,0.00036712,14]
[377588770,1754448730334,-492.36,0.00036712,14]
[377588771,1754448730343,-1432.94,0.00036712,14]
[377588772,1754448730352,-2772.54,0.00036712,14]
[377588773,1754448730361,-400.0,0.00036712,14]
[377588774,1754448730370,-660.15,0.00036712,14]
[377588775,1754448730379,-687.86,0.00036712,14]
[377588776,1754448730388,-2123.08,0.00036712,14]
[377588777,1754448730397,-1512.02,0.00036712,14]
[377588778,1754448730406,-1752.0,0.00036712,14]
[377588779,1754448730416,-1827.77,0.00036712,14]
[377588780,1754448730425,-400.0,0.00036712,14]
[377588781,1754448730434,-400.0,0.00036712,14]
[377588782,1754448730443,-400.0,0.00036712,14]
[377588783,1754448730452,-710.17,0.00036712,14]
[377588784,1754448730461,-3809.64,0.00036712,14]
[377588785,1754448730470,-400.0,0.00036712,14]
[377588786,1754448730479,-400.0,0.00036712,14]
[377588787,1754448730488,-541.8,0.00036712,14]
[377588788,1754448730496,-2320.18,0.00036712,14]
[377588789,1754448730506,-400.0,0.00036712,14]
[377588790,1754448730514,-1290.75,0.00036712,14]
[377588791,1754448730523,-2988.22,0.00036712,14]
[377588792,1754448730532,-650.32,0.00036712,14]
[377588793,1754448730541,-432.19,0.00036712,14]
[377588794,1754448730550,-400.0,0.00036712,14]
[377588795,1754448730559,-786.46,0.00036712,14]
[377588796,1754448730569,-2067.35,0.00036712,14]
[377588797,1754448730578,-1893.56,0.00036712,14]
[377588798,1754448730587,-2121.86,0.00036712,14]
[377588799,1754448730597,-1082.92,0.00036712,14]
[377588800,1754448730605,-400.0,0.00036712,14]
[377588801,1754448730614,-436.89,0.00036712,14]
[377588802,1754448730623,-400.0,0.00036712,14]
[377588803,1754448730632,-1091.29,0.00036712,14]
[377588804,1754448730642,-2572.93,0.00036712,14]
[377588805,1754448730651,-403.94,0.00036712,14]
[377588806,1754448730660,-400.0,0.00036712,14]
[377588807,1754448730669,-400.6795063,0.00036712,14]
[377588808,1754448730678,-270.78624546,0.00036712,14]
[377588809,1754448730687,-456.45,0.00036712,14]
[377588810,1754448730696,-1090.58,0.00036712,14]
[377588811,1754448730704,-2572.33,0.00036712,14]
[377588812,1754448730714,-1310.5,0.00036712,14]
[377588813,1754448730723,-1680.95,0.00036712,14]